fUSD/lending_fUSD_20250923
["ID","MTS","AMOUNT","RATE_DAILY","PERIOD"]
[387241209,1758664320924,-400.0,0.00025753,3]
[387241210,1758664320934,-400.0,0.00025753,3]
[387241211,1758664320943,-1989.15,0.00025753,3]
[387241212,1758664320953,-400.0,0.00025753,3]
[387241213,1758664320963,-403.83,0.00025753,3]
[387241214,1758664320972,-400.0,0.00025753,3]
[387241215,1758664320981,-400.0,0.00025753,3]
[387241216,1758664320992,-400.0,0.00025753,3]
[387241217,1758664321002,-723.28,0.00025753,3]
[387241218,1758664321011,-441.70081571,0.00025753,3]
[387241219,1758664321021,-561.18,0.00025753,3]
[387241220,1758664321031,-2702.29,0.00025753,3]
[387241221,1758664321040,-1721.72,0.00025753,3]
[387241222,1758664321050,-1260.0,0.00025753,3]
[387241223,1758664321060,-400.0,0.00025753,3]
[387241224,1758664321070,-3598.37,0.00025753,3]
[387241225,1758664321079,-400.0,0.00025753,3]
[387241226,1758664321089,-502.26,0.00025753,3]
[387241227,1758664321098,-1620.58,0.00025753,3]
[387241228,1758664321107,-1474.59,0.00025753,3]
[387241229,1758664321117,-506.33,0.00025753,3]
[387241230,1758664321126,-400.0,0.00025753,3]
[387241231,1758664321136,-1424.01,0.00025753,3]
[387241232,1758664321145,-1420.11,0.00025753,3]
[387241233,1758664321155,-670.32,0.00025753,3]
[387241234,1758664321164,-1056.56,0.00025753,3]
[387241235,1758664321174,-400.0,0.00025753,3]
[387241236,1758664321183,-1331.6,0.00025753,3]
[387241237,1758664321193,-1563.82,0.00025753,3]
[387241238,1758664321204,-2954.78,0.00025753,3]
[387241239,1758664321214,-1966.97,0.00025753,3]
[387241240,1758664321224,-749.44,0.00025753,3]
[387241241,1758664321234,-400.0,0.00025753,3]
[387241242,1758664321244,-1062.51,0.00025753,3]
[387241243,1758664321255,-4579.98,0.00025753,3]
[387241244,1758664321265,-760.02,0.00025753,3]
[387241245,1758664321276,-400.0,0.00025753,3]
[387241246,1758664321288,-1527.26,0.00025753,3]
[387241247,1758664321299,-400.0,0.00025753,3]
[387241248,1758664321310,-655.81,0.00025753,3]
[387241249,1758664321321,-3361.37,0.00025753,3]
[387241250,1758664321331,-691.42,0.00025753,3]
[387241251,1758664321340,-1798.01,0.00025753,3]
[387241252,1758664321350,-1342.02,0.00025753,3]
[387241253,1758664321359,-400.0,0.00025753,3]
[387241254,1758664321369,-588.0,0.00025753,3]
[387241255,1758664321381,-2944.68,0.00025753,3]
[387241256,1758664321392,-400.0,0.00025753,3]
[387241257,1758664321401,-2353.38,0.00025753,3]
[387241258,1758664321411,-11455.47,0.00025753,3]
[387241259,1758664321421,-426.64,0.00025753,3]
[387241260,1758664321432,-891.93,0.00025753,3]
[387241261,1758664321442,-836.0,0.00025753,3]
[387241262,1758664321451,-400.0,0.00025753,3]
[387241263,1758664321463,-8056.28,0.00025753,3]
[387241264,1758664321473,-2297.98,0.00025753,3]
[387241265,1758664321482,-430.82,0.00025753,3]
[387241266,1758664321491,-557.1,0.00025753,3]
[387241267,1758664321501,-2148.78,0.00025753,3]
[387241268,1758664321510,-984.5,0.00025753,3]
[387241269,1758664321520,-400.0,0.00025753,3]
[387241270,1758664321529,-1898.09,0.00025753,3]
[387241271,1758664321539,-400.0,0.00025753,3]
[387241272,1758664321549,-400.0,0.00025753,3]
[387241273,1758664321558,-1120.22,0.00025753,3]
[387241274,1758664321568,-1488.78,0.00025753,3]
[387241275,1758664321577,-2196.12,0.00025753,3]
[387241276,1758664321586,-2673.31,0.00025753,3]
[387241277,1758664321596,-400.0,0.00025753,3]
[387241278,1758664321606,-1974.89,0.00025753,3]
[387241279,1758664321615,-403.19,0.00025753,3]
[387241280,1758664321625,-1160.52,0.00025753,3]
[387241281,1758664321635,-1720.08,0.00025753,3]
[387241282,1758664321644,-400.0,0.00025753,3]
[387241283,1758664321653,-400.0,0.00025753,3]
[387241284,1758664321662,-400.0,0.00025753,3]
[387241285,1758664321671,-4427.59,0.00025753,3]
[387241286,1758664321680,-543.91,0.00025753,3]
[387241287,1758664321690,-736.09,0.00025753,3]
[387241288,1758664321699,-570.83,0.00025753,3]
[387241289,1758664321709,-1729.78,0.00025753,3]
[387241290,1758664321718,-509.42,0.00025753,3]
[387241291,1758664321728,-858.26,0.00025753,3]
[387241292,1758664321738,-2115.52,0.00025753,3]
[387241293,1758664321747,-400.0,0.00025753,3]
[387241294,1758664321756,-1946.73,0.00025753,3]
[387241295,1758664321766,-400.0,0.00025753,3]
[387241296,1758664321775,-523.04,0.00025753,3]
[387241297,1758664321785,-590.58,0.00025753,3]
[387241298,1758664321794,-2168.16,0.00025753,3]
[387241299,1758664321804,-1479.38,0.00025753,3]
[387241300,1758664321814,-3204.79,0.00025753,3]
[387241301,1758664321823,-400.0,0.00025753,3]
[387241302,1758664321832,-1290.76,0.00025753,3]
[387241303,1758664321841,-1323.54,0.00025753,3]
[387241304,1758664321850,-466.33,0.00025753,3]
[387241305,1758664321859,-400.0,0.00025753,3]
[387241306,1758664321868,-727.07,0.00025753,3]
[387241307,1758664321877,-633.05,0.00025753,3]
[387241308,1758664321886,-413.88,0.00025753,3]
[387241309,1758664321896,-400.0,0.00025753,3]
[387241310,1758664321905,-505.54,0.00025753,3]
[387241311,1758664321914,-1000.0,0.00025753,3]
[387241312,1758664321924,-400.0,0.00025753,3]
[387241313,1758664321933,-654.93,0.00025753,3]
[387241314,1758664321942,-760.67,0.00025753,3]
[387241315,1758664321951,-2523.28,0.00025753,3]
[387241316,1758664321960,-562.75,0.00025753,3]
[387241317,1758664321969,-400.0,0.00025753,3]
[387241318,1758664321978,-1733.39,0.00025753,3]
[387241319,1758664321987,-2310.41,0.00025753,3]
[387241320,1758664321996,-400.0,0.00025753,3]
[387241321,1758664322005,-400.0,0.00025753,3]
[387241322,1758664322014,-2604.18,0.00025753,3]
[387241323,1758664322023,-551.29,0.00025753,3]
[387241324,1758664322032,-1966.27,0.00025753,3]
[387241325,1758664322042,-1174.67,0.00025753,3]
[387241326,1758664322051,-2276.88,0.00025753,3]
[387241327,1758664322060,-400.0,0.00025753,3]
[387241328,1758664322069,-421.49,0.00025753,3]
[387241329,1758664322078,-400.0,0.00025753,3]
[387241330,1758664322087,-706.26,0.00025753,3]
[387241331,1758664322096,-3628.11,0.00025753,3]
[387241332,1758664322105,-2647.87,0.00025753,3]
[387241333,1758664322114,-565.31,0.00025753,3]
[387241334,1758664322124,-1829.63,0.00025753,3]
[387241335,1758664322133,-3130.39,0.00025753,3]
[387241336,1758664322142,-2516.63,0.00025753,3]
[387241337,1758664322151,-1595.55,0.00025753,3]
[387241338,1758664322161,-400.0,0.00025753,3]
[387241339,1758664322171,-296.09311205,0.00025753,3]
[387241340,1758664322180,-469.39809058,0.00025753,3]
[387241341,1758664322188,-400.0,0.00025753,3]
[387241342,1758664322197,-1399.27,0.00025753,3]
[387241343,1758664322206,-441.92539155,0.00025753,3]
[387241344,1758664322215,-1323.37,0.00025753,3]
[387241345,1758664322224,-4362.99,0.00025753,3]
[387241346,1758664322233,-2164.69,0.00025753,3]
[387241347,1758664322242,-400.0,0.00025753,3]
[387241348,1758664322251,-410.88,0.00025753,3]
[387241349,1758664322259,-2557.76,0.00025753,3]
[387241350,1758664322268,-554.53,0.00025753,3]
[387241351,1758664322277,-2696.65,0.00025753,3]
[387241352,1758664322286,-400.0,0.00025753,3]
[387241353,1758664322295,-2080.13,0.00025753,3]
[387241354,1758664322304,-436.41,0.00025753,3]
[387241355,1758664322312,-1822.61,0.00025753,3]
[387241356,1758664322322,-7563.58,0.00025753,3]
[387241357,1758664322331,-2197.93,0.00025753,3]
[387241358,1758664322340,-3272.4,0.00025753,3]
[387241359,1758664322350,-400.0,0.00025753,3]
[387241360,1758664322359,-2668.58,0.00025753,3]
[387241361,1758664322368,-400.0,0.00025753,3]
[387241362,1758664322377,-1439.94,0.00025753,3]
[387241363,1758664322390,-400.0,0.00025753,3]
[387241364,1758664322400,-547.88,0.00025753,3]
[387241365,1758664322409,-2360.32,0.00025753,3]
[387241366,1758664322418,-1694.56,0.00025753,3]
[387241367,1758664322428,-2254.46,0.00025753,3]
[387241368,1758664322438,-439.37,0.00025753,3]
[387241369,1758664322447,-413.35,0.00025753,3]
[387241370,1758664322456,-587.39,0.00025753,3]
[387241371,1758664322465,-877.79,0.00025753,3]
[387241372,1758664322474,-400.0,0.00025753,3]
[387241373,1758664322483,-400.0,0.00025753,3]
[387241374,1758664322492,-400.0,0.00025753,3]
[387241375,1758664322502,-400.0,0.00025753,3]
[387241376,1758664322511,-400.0,0.00025753,3]
[387241377,1758664322520,-1910.92,0.00025753,3]
[387241378,1758664322529,-400.0,0.00025753,3]
[387241379,1758664322538,-2031.07,0.00025753,3]
[387241380,1758664322547,-784.22,0.00025753,3]
[387241381,1758664322556,-363.17752913,0.00025753,3]
[387241382,1758664322565,-791.36,0.00025753,3]
[387241383,1758664322574,-4896.65,0.00025753,3]
[387241384,1758664322583,-400.0,0.00025753,3]
[387241385,1758664322591,-559.88,0.00025753,3]
[387241386,1758664322601,-1175.49,0.00025753,3]
[387241387,1758664322610,-626.61,0.00025753,3]
[387241388,1758664322621,-976.72,0.00025753,3]
[387241389,1758664322630,-400.0,0.00025753,3]
[387241390,1758664322639,-2758.07,0.00025753,3]
[387241391,1758664322648,-1207.96,0.00025753,3]
[387241392,1758664322657,-2495.95,0.00025753,3]
[387241393,1758664322666,-400.0,0.00025753,3]
[387241394,1758664322675,-400.0,0.00025753,3]
[387241395,1758664322684,-1205.82,0.00025753,3]
[387241396,1758664322693,-1169.14,0.00025753,3]
[387241397,1758664322702,-1595.32,0.00025753,3]
[387241398,1758664322712,-400.0,0.00025753,3]
[387241399,1758664322721,-1049.38,0.00025753,3]
[387241400,1758664322731,-400.0,0.00025753,3]
[387241401,1758664322741,-4079.21,0.00025753,3]
[387241402,1758664322750,-685.44,0.00025753,3]
[387241403,1758664322760,-400.0,0.00025753,3]
[387241404,1758664322769,-2510.3,0.00025753,3]
[387241405,1758664322778,-1890.53,0.00025753,3]
[387241406,1758664322787,-1678.52,0.00025753,3]
[387241407,1758664322796,-16706.02,0.00025753,3]
[387241408,1758664322806,-400.0,0.00025753,3]
[387241409,1758664322815,-400.0,0.00025753,3]
[387241410,1758664322824,-4251.49,0.00025753,3]
[387241411,1758664322834,-2074.52,0.00025753,3]
[387241412,1758664322844,-400.0,0.00025753,3]
[387241413,1758664322853,-400.0,0.00025753,3]
[387241414,1758664322863,-689.28,0.00025753,3]
[387241415,1758664322872,-720.98,0.00025753,3]
[387241416,1758664322882,-400.0,0.00025753,3]
[387241417,1758664322891,-400.0,0.00025753,3]
[387241418,1758664322900,-400.0,0.00025753,3]
[387241419,1758664322908,-3330.98,0.00025753,3]
[387241420,1758664322919,-425.15,0.00025753,3]
[387241421,1758664322928,-487.18,0.00025753,3]
[387241422,1758664322937,-13418.14,0.00025753,3]
[387241423,1758664322947,-605.39,0.00025753,3]
[387241424,1758664322956,-400.0,0.00025753,3]
[387241425,1758664322965,-630.04,0.00025753,3]
[387241426,1758664322974,-425.07,0.00025753,3]
[387241427,1758664322984,-2046.35,0.00025753,3]
[387241428,1758664322994,-1822.56,0.00025753,3]
[387241429,1758664323003,-507.22,0.00025753,3]
[387241430,1758664323013,-472.22,0.00025753,3]
[387241431,1758664323022,-1189.77,0.00025753,3]
[387241432,1758664323031,-400.0,0.00025753,3]
[387241433,1758664323041,-908.29,0.00025753,3]
[387241434,1758664323051,-752.17,0.00025753,3]
[387241435,1758664323060,-2819.02,0.00025753,3]
[387241436,1758664323070,-400.0,0.00025753,3]
[387241437,1758664323080,-400.0,0.00025753,3]
[387241438,1758664323090,-2102.44,0.00025753,3]
[387241439,1758664323099,-7047.04,0.00025753,3]
[387241440,1758664323108,-624.12,0.00025753,3]
[387241441,1758664323118,-1532.57,0.00025753,3]
[387241442,1758664323127,-1073.44,0.00025753,3]
[387241443,1758664323136,-400.0,0.00025753,3]
[387241444,1758664323145,-458.03,0.00025753,3]
[387241445,1758664323154,-1500.0,0.00025768,2]
[387241446,1758664323164,-1500.0,0.00025768,2]
[387241447,1758664323175,-1500.0,0.00025768,2]
[387241448,1758664323186,-1500.0,0.00025768,2]
[387241449,1758664323196,-1000.0,0.00025768,2]
[387241450,1758664323206,-150.0,0.00025773,2]
[387241451,1758664323216,-671.0,0.00025818,2]
[387241452,1758664323226,-151.50394498,0.00025832,2]
[387241453,1758664323236,-500.0,0.00025832,2]
[387241454,1758664323246,-200.0,0.00025832,2]
[387241455,1758664323256,-200.0,0.00025832,2]
[387241456,1758664323265,-300.0,0.00025832,2]
[387241457,1758664323275,-500.0,0.00025832,2]
[387241458,1758664323286,-150.0,0.00025832,2]
[387241459,1758664323302,-1233.0,0.00025832,2]
[387241460,1758664323313,-500.0,0.00025832,2]
[387241461,1758664323323,-150.0,0.00025832,2]
[387241462,1758664323333,-500.0,0.00025832,2]
[387241463,1758664323342,-150.0,0.00025832,2]
[387241464,1758664323352,-500.0,0.00025832,2]
[387241465,1758664323362,-434.0,0.00025832,2]
[387241466,1758664323373,-948.78978656,0.0002585,3]
[387241467,1758664323386,-948.64,0.0002585,3]
[387241468,1758664323396,-500.0,0.00025858,2]
[387241469,1758664323405,-360.35,0.00025865,2]
[387241470,1758664323415,-1062.55697924,0.00025886,2]
[387241471,1758664323427,-169.0,0.0002589,7]
[387241472,1758664323436,-400.0,0.00025895,3]
[387241473,1758664323446,-20000.0,0.00025896,2]
[387241474,1758664323456,-1343.36358732,0.00025927,2]
[387241475,1758664323468,-1545.40600196,0.00025927,2]
[387241476,1758664323478,-924.55396831,0.00025983,2]
[387241477,1758664323487,-947.43,0.00025985,3]
[387241478,1758664323497,-516.32,0.00026,7]
[387241479,1758664323507,-645.25,0.00026,7]
[387241480,1758664323516,-227.42,0.00026,7]
[387241481,1758664323527,-781.67,0.00026,7]
[387241482,1758664323537,-1000.0,0.00026,7]
[387241483,1758664323547,-4442.70597452,0.00026,2]
[387241484,1758664323557,-4433.65,0.00026,2]
[387241485,1758664323567,-4185.00890144,0.00026,2]
[387241486,1758664323577,-549.51,0.00026,7]
[387241487,1758664323588,-364.38,0.00026,7]
[387241488,1758664323600,-1068.77,0.00026,7]
[387241489,1758664323610,-1015.37,0.00026,2]
[387241490,1758664323620,-300.0,0.00026026,10]
[387241491,1758664323631,-671.0,0.00026027,2]
[387241492,1758664323641,-403.15,0.00026027,3]
[387241493,1758664323652,-400.0,0.00026027,3]
[387241494,1758664323663,-400.0,0.00026027,3]
[387241495,1758664323673,-463.50777708,0.00026027,3]
[387241496,1758664323683,-422.15,0.00026027,3]
[387241497,1758664323693,-311.5804704,0.00026027,3]
[387241498,1758664323703,-400.0,0.00026027,3]
[387241499,1758664323713,-400.0,0.00026027,3]
[387241500,1758664323723,-400.0,0.00026027,3]
[387241501,1758664323733,-400.0,0.00026027,3]
[387241502,1758664323743,-400.0,0.00026027,3]
[387241503,1758664323753,-722.3,0.00026027,3]
[387241504,1758664323763,-400.0,0.00026027,3]
[387241505,1758664323773,-425.13,0.00026027,3]
[387241506,1758664323783,-400.0,0.00026027,3]
[387241507,1758664323792,-463.61,0.00026027,3]
[387241508,1758664323802,-400.0,0.00026027,3]
[387241509,1758664323812,-400.0,0.00026027,3]
[387241510,1758664323822,-400.81,0.00026027,3]
[387241511,1758664323831,-606.67,0.00026027,3]
[387241512,1758664323841,-400.0,0.00026027,3]
[387241513,1758664323852,-558.51,0.00026027,3]
[387241514,1758664323863,-400.0,0.00026027,3]
[387241515,1758664323874,-517.79,0.00026027,3]
[387241516,1758664323885,-410.1,0.00026027,3]
[387241517,1758664323896,-400.0,0.00026027,3]
[387241518,1758664323907,-226.81150321,0.00026027,3]
[387241519,1758664323920,-513.24,0.00026027,3]
[387241520,1758664323931,-864.38,0.00026027,3]
[387241521,1758664323942,-400.0,0.00026027,3]
[387241522,1758664323952,-400.0,0.00026027,3]
[387241523,1758664323962,-400.0,0.00026027,3]
[387241524,1758664323972,-400.0,0.00026027,3]
[387241525,1758664323982,-400.0,0.00026027,3]
[387241526,1758664323992,-400.0,0.00026027,3]
[387241527,1758664324002,-400.0,0.00026027,3]
[387241528,1758664324012,-1162.37,0.00026027,3]
[387241529,1758664324022,-1113.94,0.00026027,3]
[387241530,1758664324031,-1113.94,0.00026027,3]
[387241531,1758664324041,-400.0,0.00026027,3]
[387241532,1758664324051,-499.32,0.00026027,3]
[387241533,1758664324062,-400.0,0.00026027,3]
[387241534,1758664324072,-400.0,0.00026027,3]
[387241535,1758664324082,-400.0,0.00026027,3]
[387241536,1758664324092,-400.0,0.00026027,3]
[387241537,1758664324102,-701.54,0.00026027,3]
[387241538,1758664324113,-761.54,0.00026027,3]
[387241539,1758664324123,-448.15,0.00026027,3]
[387241540,1758664324133,-527.27,0.00026027,3]
[387241541,1758664324143,-400.0,0.00026027,3]
[387241542,1758664324153,-400.0,0.00026027,3]
[387241543,1758664324163,-400.0,0.00026027,3]
[387241544,1758664324174,-433.43,0.00026027,3]
[387241545,1758664324184,-400.0,0.00026027,3]
[387241546,1758664324195,-1431.46,0.00026027,3]
[387241547,1758664324205,-400.0,0.00026027,3]
[387241548,1758664324215,-888.36,0.00026027,3]
[387241549,1758664324225,-400.0,0.00026027,3]
[387241550,1758664324235,-400.0,0.00026027,3]
[387241551,1758664324246,-500.78,0.00026027,3]
[387241552,1758664324256,-400.0,0.00026027,3]
[387241553,1758664324266,-400.0,0.00026027,3]
[387241554,1758664324276,-415.37,0.00026027,3]
[387241555,1758664324286,-400.0,0.00026027,3]
[387241556,1758664324297,-851.65,0.00026027,3]
[387241557,1758664324308,-469.22,0.00026027,3]
[387241558,1758664324319,-449.67,0.00026027,3]
[387241559,1758664324329,-514.2,0.00026027,3]
[387241560,1758664324340,-696.09,0.00026027,3]
[387241561,1758664324350,-400.0,0.00026027,3]
[387241562,1758664324361,-942.3,0.00026027,3]
[387241563,1758664324371,-401.11,0.00026027,3]
[387241564,1758664324383,-409.1,0.00026027,3]
[387241565,1758664324395,-400.0,0.00026027,3]
[387241566,1758664324405,-400.0,0.00026027,3]
[387241567,1758664324415,-411.01122845,0.00026027,3]
[387241568,1758664324425,-483.66,0.00026027,3]
[387241569,1758664324438,-700.73,0.00026027,3]
[387241570,1758664324447,-1218.15,0.00026027,3]
[387241571,1758664324458,-432.38,0.00026027,3]
[387241572,1758664324469,-400.0,0.00026027,3]
[387241573,1758664324479,-400.0,0.00026027,3]
[387241574,1758664324489,-413.32,0.00026027,3]
[387241575,1758664324500,-600.39,0.00026027,3]
[387241576,1758664324510,-400.0,0.00026027,3]
[387241577,1758664324520,-400.0,0.00026027,3]
[387241578,1758664324530,-525.79,0.00026027,3]
[387241579,1758664324539,-400.0,0.00026027,3]
[387241580,1758664324550,-400.0,0.00026027,3]
[387241581,1758664324559,-585.89,0.00026027,3]
[387241582,1758664324569,-400.0,0.00026027,3]
[387241583,1758664324578,-400.0,0.00026027,3]
[387241584,1758664324588,-1162.35,0.00026027,3]
[387241585,1758664324599,-869.19,0.00026027,3]
[387241586,1758664324608,-683.96,0.00026027,3]
[387241587,1758664324618,-400.0,0.00026027,3]
[387241588,1758664324627,-853.3,0.00026027,3]
[387241589,1758664324638,-400.0,0.00026027,3]
[387241590,1758664324647,-400.0,0.00026027,3]
[387241591,1758664324657,-684.3,0.00026027,3]
[387241592,1758664324667,-714.46,0.00026027,3]
[387241593,1758664324678,-684.69,0.00026027,3]
[387241594,1758664324687,-684.69,0.00026027,3]
[387241595,1758664324697,-501.82166877,0.00026027,3]
[387241596,1758664324707,-400.0,0.00026027,3]
[387241597,1758664324716,-400.0,0.00026027,3]
[387241598,1758664324726,-400.0,0.00026027,3]
[387241599,1758664324735,-451.05,0.00026027,3]
[387241600,1758664324745,-1130.1,0.00026027,3]
[387241601,1758664324755,-1034.82,0.00026027,3]
[387241602,1758664324765,-414.11,0.00026027,3]
[387241603,1758664324775,-400.0,0.00026027,3]
[387241604,1758664324785,-400.0,0.00026027,3]
[387241605,1758664324795,-400.0,0.00026027,3]
[387241606,1758664324804,-568.34,0.00026027,3]
[387241607,1758664324815,-497.27,0.00026027,3]
[387241608,1758664324824,-400.0,0.00026027,3]
[387241609,1758664324835,-483.14,0.00026027,3]
[387241610,1758664324845,-406.13268845,0.00026027,3]
[387241611,1758664324855,-400.0,0.00026027,3]
[387241612,1758664324866,-400.0,0.00026027,3]
[387241613,1758664324876,-400.0,0.00026027,3]
[387241614,1758664324886,-963.02,0.00026027,3]
[387241615,1758664324896,-442.92,0.00026027,3]
[387241616,1758664324906,-400.0,0.00026027,3]
[387241617,1758664324917,-400.0,0.00026027,3]
[387241618,1758664324927,-400.0,0.00026027,3]
[387241619,1758664324937,-419.2,0.00026027,3]
[387241620,1758664324947,-400.0,0.00026027,3]
[387241621,1758664324956,-495.44,0.00026027,3]
[387241622,1758664324966,-400.0,0.00026027,3]
[387241623,1758664324977,-1113.1,0.00026027,3]
[387241624,1758664324988,-564.87,0.00026027,3]
[387241625,1758664324999,-400.0,0.00026027,3]
[387241626,1758664325010,-400.0,0.00026027,3]
[387241627,1758664325021,-400.0,0.00026027,3]
[387241628,1758664325031,-442.1,0.00026027,3]
[387241629,1758664325043,-612.62,0.00026027,3]
[387241630,1758664325053,-400.0,0.00026027,3]
[387241631,1758664325064,-544.44,0.00026027,3]
[387241632,1758664325074,-553.48,0.00026027,3]
[387241633,1758664325084,-152.06825936,0.00026027,3]
[387241634,1758664325094,-811.92,0.00026027,3]
[387241635,1758664325104,-400.0,0.00026027,3]
[387241636,1758664325114,-866.52,0.00026027,3]
[387241637,1758664325124,-400.0,0.00026027,3]
[387241638,1758664325134,-300.15902932,0.00026027,3]
[387241639,1758664325144,-400.0,0.00026027,3]
[387241640,1758664325154,-400.0,0.00026027,3]
[387241641,1758664325164,-1271.99,0.00026027,3]
[387241642,1758664325174,-400.0,0.00026027,3]
[387241643,1758664325185,-555.94,0.00026027,3]
[387241644,1758664325195,-400.0,0.00026027,3]
[387241645,1758664325206,-516.66,0.00026027,3]
[387241646,1758664325216,-443.34,0.00026027,3]
[387241647,1758664325226,-460.81,0.00026027,3]
[387241648,1758664325236,-400.0,0.00026027,3]
[387241649,1758664325246,-400.0,0.00026027,3]
[387241650,1758664325256,-502.53,0.00026027,3]
[387241651,1758664325266,-505.37,0.00026027,3]
[387241652,1758664325275,-542.19,0.00026027,3]
[387241653,1758664325285,-688.7,0.00026027,3]
[387241654,1758664325295,-1015.44,0.00026027,3]
[387241655,1758664325305,-1292.63,0.00026027,3]
[387241656,1758664325315,-400.0,0.00026027,3]
[387241657,1758664325325,-1611.73,0.00026027,3]
[387241658,1758664325335,-637.7,0.00026027,3]
[387241659,1758664325345,-400.0,0.00026027,3]
[387241660,1758664325355,-1000.0,0.00026027,3]
[387241661,1758664325365,-660.83,0.00026027,3]
[387241662,1758664325375,-549.84,0.00026027,3]
[387241663,1758664325389,-1262.83,0.00026027,3]
[387241664,1758664325399,-400.0,0.00026027,3]
[387241665,1758664325408,-511.14,0.00026027,3]
[387241666,1758664325418,-1072.23,0.00026027,3]
[387241667,1758664325768,-435.66,0.00026027,3]
[387241668,1758664325778,-400.0,0.00026027,3]
[387241669,1758664325788,-446.42,0.00026027,3]
[387241670,1758664325797,-956.24,0.00026027,3]
[387241671,1758664325807,-804.81,0.00026027,3]
[387241672,1758664325816,-493.33,0.00026027,3]
[387241673,1758664325825,-400.0,0.00026027,3]
[387241674,1758664325835,-400.0,0.00026027,3]
[387241675,1758664325844,-400.0,0.00026027,3]
[387241676,1758664325853,-400.0,0.00026027,3]
[387241677,1758664325862,-400.0,0.00026027,3]
[387241678,1758664325872,-425.12,0.00026027,3]
[387241679,1758664325881,-400.0,0.00026027,3]
[387241680,1758664325890,-400.0,0.00026027,3]
[387241681,1758664325899,-400.0,0.00026027,3]
[387241682,1758664325909,-536.14,0.00026027,3]
[387241683,1758664325918,-397.7146536,0.00026027,3]
[387241684,1758664325928,-400.0,0.00026027,3]
[387241685,1758664325937,-400.0,0.00026027,3]
[387241686,1758664325947,-400.0,0.00026027,3]
[387241687,1758664325957,-400.0,0.00026027,3]
[387241688,1758664325966,-400.0,0.00026027,3]
[387241689,1758664325976,-400.0,0.00026027,3]
[387241690,1758664325985,-400.0,0.00026027,3]
[387241691,1758664325995,-647.53,0.00026027,3]
[387241692,1758664326005,-1446.35,0.00026027,3]
[387241693,1758664326014,-400.0,0.00026027,3]
[387241694,1758664326024,-400.0,0.00026027,3]
[387241695,1758664326034,-400.0,0.00026027,3]
[387241696,1758664326043,-400.0,0.00026027,3]
[387241697,1758664326053,-712.76,0.00026027,3]
[387241698,1758664326063,-400.0,0.00026027,3]
[387241699,1758664326073,-742.51,0.00026027,3]
[387241700,1758664326082,-400.0,0.00026027,3]
[387241701,1758664326091,-400.0,0.00026027,3]
[387241702,1758664326101,-609.25,0.00026027,3]
[387241703,1758664326110,-1004.12,0.00026027,3]
[387241704,1758664326120,-533.26336029,0.00026027,3]
[387241705,1758664326129,-400.0,0.00026027,3]
[387241706,1758664326139,-444.41497283,0.00026027,3]
[387241707,1758664326148,-400.0,0.00026027,3]
[387241708,1758664326158,-1267.73,0.00026027,3]